fUSD/lending_fUSD_20260605
["ID","MTS","AMOUNT","RATE_DAILY","PERIOD"]
[424215141,1780669859000,-360.96183466,0.00023336,2]
[424215147,1780669859000,-200.0,0.00023336,2]
[424215143,1780669859000,-225.18697532,0.00023336,2]
[424215148,1780669859000,-200.0,0.00023336,2]
[424215142,1780669859000,-270.0455652,0.00023336,2]
[424215145,1780669859000,-12318.36988822,0.00023336,2]
[424215144,1780669859000,-1842.0326633,0.00023336,2]
[424215146,1780669859000,-894.19061325,0.00023336,2]
[424215149,1780669859000,-500.0,0.00023336,2]
[424215151,1780669859000,-151.0,0.00023336,2]
[424215160,1780669859000,-151.0,0.00023884,2]
[424215159,1780669859000,-233.5188934,0.00023607,2]
[424215152,1780669859000,-270.0455652,0.00023336,2]
[424215183,1780669859000,-4088.0,0.00024,2]
[424215178,1780669859000,-3208.0,0.00024,2]
[424215188,1780669859000,-828.0,0.00024,2]
[424215219,1780669859000,-6010.95,0.00024658,2]
[424215222,1780669859000,-151.0,0.00024658,2]
[424215220,1780669859000,-161.02,0.00024658,2]
[424215221,1780669859000,-151.0,0.00024658,2]
[424215224,1780669859000,-854.09,0.00024658,2]
[424215226,1780669859000,-151.0,0.00024658,2]
[424215236,1780669859000,-151.0,0.00024658,2]
[424215225,1780669859000,-1000.0,0.00024658,2]
[424215234,1780669859000,-151.0,0.00024658,2]
[424215227,1780669859000,-151.0,0.00024658,2]
[424215228,1780669859000,-151.0,0.00024658,2]
[424215229,1780669859000,-151.0,0.00024658,2]
[424215235,1780669859000,-151.0,0.00024658,2]
[424215216,1780669859000,-290.3986294,0.00024432,2]
[424215233,1780669859000,-151.0,0.00024658,2]
[424215232,1780669859000,-151.0,0.00024658,2]
[424215231,1780669859000,-151.0,0.00024658,2]
[424215237,1780669859000,-151.0,0.00024658,2]
[424215244,1780669859000,-300.0,0.00024658,14]
[424215242,1780669859000,-273.953306,0.00024658,2]
[424215240,1780669859000,-151.0,0.00024658,2]
[424215239,1780669859000,-151.0,0.00024658,2]
[424215238,1780669859000,-151.0,0.00024658,2]
[424215243,1780669859000,-150.0,0.00024658,2]
[424215186,1780669859000,-842.0,0.00024,2]
[424215241,1780669859000,-151.0,0.00024658,2]
[424215245,1780669859000,-3553.0,0.00024702,2]
[424215247,1780669859000,-500.0,0.0002477,14]
[424215230,1780669859000,-151.0,0.00024658,2]
[424215218,1780669859000,-6010.95,0.00024658,2]
[424215246,1780669859000,-152.0,0.00024765,3]
[424215215,1780669859000,-200.0,0.00024432,2]
[424215217,1780669859000,-172.22658536,0.0002465,2]
[424215187,1780669859000,-500.0,0.00024,2]
[424215190,1780669859000,-1257.5843238,0.00024,2]
[424215189,1780669859000,-3600.0,0.00024,2]
[424215198,1780669859000,-500.0,0.0002424,2]
[424215192,1780669859000,-1079.0,0.00024,2]
[424215193,1780669859000,-2256.0,0.00024,2]
[424215197,1780669859000,-3763.71119265,0.0002421,2]
[424215196,1780669859000,-1460.1,0.000242,7]
[424215195,1780669859000,-200.0,0.0002408,2]
[424215194,1780669859000,-543.0,0.00024,2]
[424215199,1780669859000,-200.0,0.00024323,2]
[424215202,1780669859000,-1031.08454906,0.00024432,2]
[424215200,1780669859000,-4793.4,0.00024324,2]
[424215191,1780669859000,-4454.0,0.00024,2]
[424215201,1780669859000,-151.0,0.00024432,2]
[424215203,1780669859000,-290.3986294,0.00024432,2]
[424215223,1780669859000,-151.0,0.00024658,2]
[424215213,1780669859000,-151.0,0.00024432,2]
[424215211,1780669859000,-500.0,0.00024432,2]
[424215210,1780669859000,-200.0,0.00024432,2]
[424215212,1780669859000,-2884.75459676,0.00024432,2]
[424215205,1780669859000,-242.15909246,0.00024432,2]
[424215204,1780669859000,-388.16716718,0.00024432,2]
[424215207,1780669859000,-13246.79310833,0.00024432,2]
[424215214,1780669859000,-290.3986294,0.00024432,2]
[424215208,1780669859000,-961.58486558,0.00024432,2]
[424215206,1780669859000,-1980.8648231,0.00024432,2]
[424215209,1780669859000,-200.0,0.00024432,2]
[424215276,1780669860000,-500.0,0.00024999,2]
[424215295,1780669860000,-547.55,0.00024999,2]
[424215274,1780669860000,-500.0,0.00024999,2]
[424215279,1780669860000,-500.0,0.00024999,2]
[424215278,1780669860000,-500.0,0.00024999,2]
[424215281,1780669860000,-516.19261394,0.00024999,2]
[424215285,1780669860000,-500.0,0.00024999,2]
[424215283,1780669860000,-500.0,0.00024999,2]
[424215282,1780669860000,-500.0,0.00024999,2]
[424215284,1780669860000,-500.0,0.00024999,2]
[424215294,1780669860000,-820.40127567,0.00024999,2]
[424215280,1780669860000,-500.0,0.00024999,2]
[424215293,1780669860000,-820.27,0.00024999,2]
[424215287,1780669860000,-820.27,0.00024999,2]
[424215288,1780669860000,-820.27,0.00024999,2]
[424215291,1780669860000,-820.27,0.00024999,2]
[424215289,1780669860000,-820.27,0.00024999,2]
[424215292,1780669860000,-820.27,0.00024999,2]
[424215290,1780669860000,-820.27,0.00024999,2]
[424215297,1780669860000,-547.55,0.00024999,2]
[424215307,1780669860000,-1058.68,0.00024999,2]
[424215299,1780669860000,-547.55,0.00024999,2]
[424215308,1780669860000,-1058.68,0.00024999,2]
[424215277,1780669860000,-500.0,0.00024999,2]
[424215286,1780669860000,-610.28940694,0.00024999,2]
[424215275,1780669860000,-500.0,0.00024999,2]
[424215252,1780669860000,-242.15909246,0.00024976,2]
[424215267,1780669860000,-301.14337869,0.0002498,2]
[424215309,1780669860000,-1058.68,0.00024999,2]
[424215248,1780669860000,-200.0,0.000248,2]
[424215249,1780669860000,-2330.7,0.00024838,7]
[424215251,1780669860000,-317.82972749,0.00024976,2]
[424215250,1780669860000,-200.0,0.0002486,2]
[424215255,1780669860000,-151.0,0.0002498,2]
[424215256,1780669860000,-301.14337869,0.0002498,2]
[424215253,1780669860000,-621.78829552,0.00024978,2]
[424215259,1780669860000,-1069.23467737,0.0002498,2]
[424215257,1780669860000,-402.52935237,0.0002498,2]
[424215260,1780669860000,-2054.15682156,0.0002498,2]
[424215273,1780669860000,-151.0,0.00024997,7]
[424215258,1780669860000,-251.11897888,0.0002498,2]
[424215261,1780669860000,-5141.04808286,0.0002498,2]
[424215263,1780669860000,-200.0,0.0002498,2]
[424215262,1780669860000,-997.16350561,0.0002498,2]
[424215271,1780669860000,-151.0,0.00024997,7]
[424215270,1780669860000,-301.14337869,0.0002498,2]
[424215272,1780669860000,-151.0,0.00024997,7]
[424215269,1780669860000,-200.0,0.0002498,2]
[424215266,1780669860000,-2991.49051684,0.0002498,2]
[424215264,1780669860000,-200.0,0.0002498,2]
[424215265,1780669860000,-500.0,0.0002498,2]
[424215268,1780669860000,-151.0,0.0002498,2]
[424215254,1780669860000,-775.4783256,0.00024978,2]
[424215298,1780669860000,-547.55,0.00024999,2]
[424215296,1780669860000,-547.55,0.00024999,2]
[424215300,1780669860000,-547.55,0.00024999,2]
[424215328,1780669860000,-589.51,0.00024999,2]
[424215329,1780669860000,-589.65722162,0.00024999,2]
[424215330,1780669860000,-500.0,0.00024999,2]
[424215336,1780669860000,-1292.26,0.00024999,2]
[424215341,1780669860000,-1292.26,0.00024999,2]
[424215340,1780669860000,-1292.26,0.00024999,2]
[424215338,1780669860000,-1292.26,0.00024999,2]
[424215342,1780669860000,-1292.26,0.00024999,2]
[424215345,1780669860000,-1462.83,0.00024999,2]
[424215348,1780669860000,-1462.83,0.00024999,2]
[424215346,1780669860000,-1462.83,0.00024999,2]
[424215326,1780669860000,-589.51,0.00024999,2]
[424215337,1780669860000,-1292.26,0.00024999,2]
[424215347,1780669860000,-1462.83,0.00024999,2]
[424215343,1780669860000,-1292.48302502,0.00024999,2]
[424215350,1780669860000,-1462.83,0.00024999,2]
[424215354,1780669860000,-170.05133611,0.00025,2]
[424215349,1780669860000,-1462.83,0.00024999,2]
[424215355,1780669860000,-628.5162284,0.00025,5]
[424215351,1780669860000,-1463.02164547,0.00024999,2]
[424215357,1780669860000,-1302438.27666679,0.00025,2]
[424215352,1780669860000,-7245.15902368,0.00025,2]
[424215356,1780669860000,-2768.89391467,0.00025,2]
[424215301,1780669860000,-547.55,0.00024999,2]
[424215344,1780669860000,-1462.83,0.00024999,2]
[424215327,1780669860000,-589.51,0.00024999,2]
[424215339,1780669860000,-1292.26,0.00024999,2]
[424215324,1780669860000,-589.51,0.00024999,2]
[424215302,1780669860000,-547.55,0.00024999,2]
[424215304,1780669860000,-1058.68,0.00024999,2]
[424215306,1780669860000,-1058.68,0.00024999,2]
[424215303,1780669860000,-547.58748853,0.00024999,2]
[424215325,1780669860000,-589.51,0.00024999,2]
[424215310,1780669860000,-1058.68,0.00024999,2]
[424215312,1780669860000,-1058.80440715,0.00024999,2]
[424215353,1780669860000,-2236.37109545,0.00025,2]
[424215313,1780669860000,-738.9,0.00024999,2]
[424215314,1780669860000,-738.9,0.00024999,2]
[424215320,1780669860000,-738.9,0.00024999,2]
[424215318,1780669860000,-738.9,0.00024999,2]
[424215321,1780669860000,-739.02936812,0.00024999,2]
[424215305,1780669860000,-1058.68,0.00024999,2]
[424215319,1780669860000,-738.9,0.00024999,2]
[424215311,1780669860000,-1058.68,0.00024999,2]
[424215334,1780669860000,-500.0,0.00024999,2]
[424215332,1780669860000,-500.0,0.00024999,2]
[424215331,1780669860000,-500.0,0.00024999,2]
[424215333,1780669860000,-500.0,0.00024999,2]
[424215335,1780669860000,-419.79135557,0.00024999,2]
[424215322,1780669860000,-589.51,0.00024999,2]
[424215317,1780669860000,-738.9,0.00024999,2]
[424215315,1780669860000,-738.9,0.00024999,2]
[424215316,1780669860000,-738.9,0.00024999,2]
[424215323,1780669860000,-589.51,0.00024999,2]
[424215372,1780669861000,-3181.04793922,0.00025,2]
[424215367,1780669861000,-200.0,0.00021918,2]
[424215371,1780669861000,-3219.62205104,0.00025,2]
[424215368,1780669861000,-677434.59649705,0.00025,2]
[424215370,1780669861000,-1186.0,0.00025,2]
[424215376,1780669861000,-1132.11673633,0.00025,2]
[424215377,1780669861000,-210.88009305,0.00025,2]
[424215369,1780669861000,-967.08937479,0.00025,2]
[424215360,1780669861000,-7762.64,0.00025,2]
[424215365,1780669861000,-160.0,0.0001012,2]
[424215363,1780669861000,-398.95485508,0.00025,2]
[424215362,1780669861000,-1393.70538923,0.00025,2]
[424215364,1780669861000,-9781.20000012,0.00025,2]
[424215361,1780669861000,-6713.57353167,0.00025,2]
[424215359,1780669861000,-200.0,0.00022518,2]
[424215358,1780669861000,-1068.31872733,0.00025,2]
[424215374,1780669861000,-639.71455908,0.00025,2]
[424215366,1780669861000,-351.54786349,0.00017802,2]
[424215373,1780669861000,-1076.41011367,0.00025,2]
[424215378,1780669861000,-174.01953729,0.00025,60]
[424215389,1780669861000,-151.0,0.00025,2]
[424215398,1780669861000,-151.0,0.00025,2]
[424215375,1780669861000,-241.430709,0.00025,2]
[424215394,1780669861000,-185.576005,0.00025,2]
[424215392,1780669861000,-151.0,0.00025,2]
[424215396,1780669861000,-185.576005,0.00025,2]
[424215397,1780669861000,-185.576005,0.00025,2]
[424215393,1780669861000,-4461.35156959,0.00025,2]
[424215384,1780669861000,-859.38328777,0.00025,2]
[424215386,1780669861000,-2000.0,0.00025,2]
[424215388,1780669861000,-540.0,0.00025,2]
[424215395,1780669861000,-185.576005,0.00025,2]
[424215383,1780669861000,-151.0,0.00025,2]
[424215387,1780669861000,-832.10012467,0.00025,2]
[424215380,1780669861000,-1814.05518717,0.00025,2]
[424215382,1780669861000,-151.0,0.00025,2]
[424215379,1780669861000,-4105.10499114,0.00025,2]
[424215391,1780669861000,-3092.99737993,0.00025,2]
[424215390,1780669861000,-620.74641957,0.00025,2]
[424215385,1780669861000,-151.0,0.00025,2]
[424215381,1780669861000,-151.0,0.00025,2]
[424215442,1780669862000,-178.77529349,0.00025602,2]
[424215437,1780669862000,-417.4229384,0.00025528,2]
[424215436,1780669862000,-312.45047246,0.00025417,2]
[424215435,1780669862000,-1460.1,0.000254,7]
[424215434,1780669862000,-438.0,0.00025358,10]
[424215441,1780669862000,-168.28,0.00025548,2]
[424215433,1780669862000,-15478.07,0.00025189,7]
[424215432,1780669862000,-150.0,0.00025141,2]
[424215439,1780669862000,-1108.79636043,0.00025528,2]
[424215438,1780669862000,-260.4103811,0.00025528,2]
[424215444,1780669862000,-200.0,0.00025641,2]
[424215440,1780669862000,-200.0,0.00025528,2]
[424215443,1780669862000,-150.0,0.00025627,2]
[424215451,1780669862000,-550.0,0.00026,2]
[424215447,1780669862000,-450.0,0.00025767,2]
[424215448,1780669862000,-610.94171144,0.0002599,2]
[424215446,1780669862000,-437.4,0.00025767,2]
[424215449,1780669862000,-4598.79772599,0.00026,2]
[424215453,1780669862000,-550.0,0.00026027,2]
[424215452,1780669862000,-215.77576141,0.00026,7]
[424215450,1780669862000,-220.10517838,0.00026,2]
[424215431,1780669862000,-150.0,0.00025141,2]
[424215455,1780669862000,-415.0,0.00026027,2]
[424215454,1780669862000,-550.0,0.00026027,2]
[424215462,1780669862000,-270.0455652,0.00026076,2]
[424215460,1780669862000,-300.0,0.00026028,14]
[424215456,1780669862000,-200.0,0.00026027,2]
[424215459,1780669862000,-150.0,0.00026028,2]
[424215445,1780669862000,-2549.87,0.00025644,2]
[424215430,1780669862000,-150.0,0.00025141,2]
[424215426,1780669862000,-150.0,0.00025141,2]
[424215427,1780669862000,-150.0,0.00025141,2]
[424215463,1780669862000,-1149.82182577,0.00026076,2]
[424215399,1780669862000,-151.0,0.00025,2]
[424215403,1780669862000,-151.0,0.00025,2]
[424215402,1780669862000,-151.0,0.00025,2]
[424215400,1780669862000,-151.0,0.00025,2]
[424215404,1780669862000,-2271.05141722,0.00025,2]
[424215401,1780669862000,-1086.89084215,0.00025,2]
[424215406,1780669862000,-546.8172967,0.00025,2]
[424215405,1780669862000,-181.269916,0.00025,2]
[424215416,1780669862000,-439.09,0.00025,2]
[424215415,1780669862000,-439.09,0.00025,2]
[424215407,1780669862000,-3001.961721,0.00025,2]
[424215411,1780669862000,-2000.0,0.00025,2]
[424215429,1780669862000,-150.0,0.00025141,2]
[424215412,1780669862000,-439.09,0.00025,2]
[424215409,1780669862000,-3001.961721,0.00025,2]
[424215410,1780669862000,-3001.961722,0.00025,2]
[424215414,1780669862000,-439.09,0.00025,2]
[424215417,1780669862000,-439.09,0.00025,2]
[424215419,1780669862000,-439.09,0.00025,2]
[424215420,1780669862000,-439.09,0.00025,2]
[424215418,1780669862000,-439.09,0.00025,2]
[424215422,1780669862000,-1273.0,0.00025086,2]
[424215423,1780669862000,-1227.0,0.00025086,2]
[424215421,1780669862000,-439.09,0.00025,2]
[424215424,1780669862000,-150.0,0.00025141,2]
[424215425,1780669862000,-150.0,0.00025141,2]
[424215428,1780669862000,-150.0,0.00025141,2]
[424215413,1780669862000,-439.09,0.00025,2]
[424215461,1780669862000,-432.86758713,0.00026076,2]
[424215408,1780669862000,-3001.961721,0.00025,2]
[424215464,1780669862000,-200.0,0.00026076,2]
[424215498,1780669862000,-475.27,0.00027397,2]
[424215494,1780669862000,-1046.98494811,0.00027362,2]
[424215502,1780669862000,-429.36729207,0.00027397,2]
[424215501,1780669862000,-1500.0,0.00027397,2]
[424215495,1780669862000,-4185.20803368,0.0002739,2]
[424215496,1780669862000,-8268.38712339,0.0002739,2]
[424215503,1780669862000,-528.75,0.00027397,2]
[424215504,1780669862000,-3084.57,0.00027397,2]
[424215505,1780669862000,-1000.0,0.00027397,20]
[424215506,1780669862000,-151.0,0.00027397,2]
[424215508,1780669862000,-151.0,0.00027397,2]
[424215518,1780669862000,-211.073153,0.00027397,2]
[424215509,1780669862000,-151.0,0.00027397,2]
[424215497,1780669862000,-412.41523351,0.00027397,7]
[424215511,1780669862000,-151.0,0.00027397,2]
[424215507,1780669862000,-151.0,0.00027397,2]
[424215514,1780669862000,-151.0,0.00027397,2]
[424215510,1780669862000,-151.0,0.00027397,2]
[424215516,1780669862000,-206.573525,0.00027397,2]
[424215515,1780669862000,-151.0,0.00027397,2]
[424215513,1780669862000,-151.0,0.00027397,2]
[424215520,1780669862000,-211.073153,0.00027397,2]
[424215522,1780669862000,-211.073153,0.00027397,2]
[424215523,1780669862000,-211.073153,0.00027397,2]
[424215521,1780669862000,-211.073153,0.00027397,2]
[424215519,1780669862000,-211.073153,0.00027397,2]
[424215524,1780669862000,-211.073153,0.00027397,2]
[424215465,1780669862000,-4793.4,0.00026296,2]
[424215512,1780669862000,-151.0,0.00027397,2]
[424215500,1780669862000,-415.43870545,0.00027397,2]
[424215517,1780669862000,-854.09,0.00027397,2]
[424215493,1780669862000,-3239.6465601,0.00027305,2]
[424215499,1780669862000,-1439.45636251,0.00027397,2]
[424215458,1780669862000,-150.0,0.00026027,2]
[424215466,1780669862000,-251.11897888,0.00026345,2]
[424215470,1780669862000,-448.88368785,0.00026624,2]
[424215468,1780669862000,-200.0,0.00026421,2]
[424215469,1780669862000,-280.03725111,0.00026624,2]
[424215475,1780669862000,-280.96199545,0.00026786,3]
[424215478,1780669862000,-1053.00911247,0.00027,2]
[424215473,1780669862000,-577.0,0.000267,5]
[424215474,1780669862000,-152.0,0.00026781,4]
[424215477,1780669862000,-250.0,0.00027,2]
[424215476,1780669862000,-15478.07,0.00026919,7]
[424215471,1780669862000,-1192.36523332,0.00026624,2]
[424215467,1780669862000,-27956.72095407,0.000264,2]
[424215472,1780669862000,-200.0,0.00026624,2]
[424215457,1780669862000,-200.0,0.00026027,2]
[424215492,1780669862000,-160.13227985,0.000273,30]
[424215490,1780669862000,-200.0,0.00027172,2]
[424215491,1780669862000,-200.0,0.00027202,2]
[424215483,1780669862000,-172.0,0.00027,7]
[424215479,1780669862000,-530.0,0.00027,2]
[424215489,1780669862000,-1236.48274696,0.00027172,2]
[424215485,1780669862000,-14775.12913419,0.00027111,2]
[424215480,1780669862000,-1460.1,0.00027,7]
[424215488,1780669862000,-465.4923843,0.00027172,2]
[424215486,1780669862000,-559.0,0.00027137,2]
[424215487,1780669862000,-290.3986294,0.00027172,2]
[424215481,1780669862000,-167.0,0.00027,7]
[424215482,1780669862000,-163.0,0.00027,7]
[424215484,1780669862000,-500.0,0.00027042,2]
[424215565,1780669863000,-897.541149,0.00027397,2]
[424215562,1780669863000,-151.0,0.00027397,2]
[424215564,1780669863000,-897.541149,0.00027397,2]
[424215563,1780669863000,-281.550892,0.00027397,2]
[424215569,1780669863000,-897.541149,0.00027397,2]
[424215559,1780669863000,-657.431211,0.00027397,2]
[424215558,1780669863000,-657.431215,0.00027397,2]
[424215568,1780669863000,-897.541149,0.00027397,2]
[424215570,1780669863000,-897.541149,0.00027397,2]
[424215561,1780669863000,-151.0,0.00027397,2]
[424215567,1780669863000,-897.541149,0.00027397,2]
[424215566,1780669863000,-897.541149,0.00027397,2]
[424215560,1780669863000,-151.0,0.00027397,2]
[424215571,1780669863000,-897.541149,0.00027397,2]
[424215572,1780669863000,-897.541149,0.00027397,2]
[424215576,1780669863000,-897.541149,0.00027397,2]
[424215581,1780669863000,-897.541149,0.00027397,2]
[424215582,1780669863000,-897.541149,0.00027397,2]
[424215575,1780669863000,-897.541149,0.00027397,2]
[424215577,1780669863000,-897.541149,0.00027397,2]
[424215573,1780669863000,-897.541149,0.00027397,2]
[424215574,1780669863000,-897.541149,0.00027397,2]
[424215579,1780669863000,-897.541149,0.00027397,2]
[424215580,1780669863000,-897.541149,0.00027397,2]
[424215578,1780669863000,-897.541149,0.00027397,2]
[424215584,1780669863000,-1445.79743,0.00027397,2]
[424215586,1780669863000,-1445.79743,0.00027397,2]
[424215596,1780669863000,-1445.79743,0.00027397,2]
[424215583,1780669863000,-897.541149,0.00027397,2]
[424215553,1780669863000,-657.431215,0.00027397,2]
[424215530,1780669863000,-211.073153,0.00027397,2]
[424215557,1780669863000,-657.431215,0.00027397,2]
[424215531,1780669863000,-211.073153,0.00027397,2]
[424215529,1780669863000,-211.073153,0.00027397,2]
[424215525,1780669863000,-211.073153,0.00027397,2]
[424215526,1780669863000,-211.073153,0.00027397,2]
[424215528,1780669863000,-211.073153,0.00027397,2]
[424215527,1780669863000,-211.073153,0.00027397,2]
[424215532,1780669863000,-211.073153,0.00027397,2]
[424215542,1780669863000,-657.431215,0.00027397,2]
[424215533,1780669863000,-211.073153,0.00027397,2]
[424215535,1780669863000,-211.073153,0.00027397,2]
[424215538,1780669863000,-300.0,0.00027397,2]
[424215541,1780669863000,-657.431215,0.00027397,2]
[424215540,1780669863000,-657.431215,0.00027397,2]
[424215543,1780669863000,-657.431215,0.00027397,2]
[424215534,1780669863000,-211.073153,0.00027397,2]
[424215536,1780669863000,-211.073153,0.00027397,2]
[424215544,1780669863000,-657.431215,0.00027397,2]
[424215537,1780669863000,-211.073147,0.00027397,2]
[424215539,1780669863000,-1022.33,0.00027397,2]
[424215545,1780669863000,-657.431215,0.00027397,2]
[424215547,1780669863000,-657.431215,0.00027397,2]
[424215556,1780669863000,-657.431215,0.00027397,2]
[424215546,1780669863000,-657.431215,0.00027397,2]
[424215550,1780669863000,-657.431215,0.00027397,2]
[424215555,1780669863000,-657.431215,0.00027397,2]
[424215548,1780669863000,-657.431215,0.00027397,2]
[424215549,1780669863000,-657.431215,0.00027397,2]
[424215552,1780669863000,-657.431215,0.00027397,2]
[424215551,1780669863000,-657.431215,0.00027397,2]
[424215554,1780669863000,-657.431215,0.00027397,2]
[424215588,1780669863000,-1445.79743,0.00027397,2]
[424215587,1780669863000,-1445.79743,0.00027397,2]
[424215590,1780669863000,-1445.79743,0.00027397,2]
[424215631,1780669863000,-361.39677056,0.00027778,2]
[424215630,1780669863000,-180.68026679,0.00027778,2]
[424215633,1780669863000,-152.55444911,0.00027778,2]
[424215634,1780669863000,-153.84610515,0.00027778,2]
[424215632,1780669863000,-158.78264539,0.00027778,2]
[424215623,1780669863000,-644.79446245,0.00027717,2]
[424215626,1780669863000,-438.2587081,0.0002772,2]
[424215625,1780669863000,-301.14337869,0.0002772,2]
[424215627,1780669863000,-200.0,0.0002772,2]
[424215628,1780669863000,-150.8985886,0.00027778,2]
[424215629,1780669863000,-155.87534582,0.00027778,2]
[424215635,1780669863000,-173.47099202,0.00027778,2]
[424215637,1780669863000,-207.81380471,0.00027778,2]
[424215624,1780669863000,-804.17102365,0.00027717,2]
[424215646,1780669863000,-311.68415501,0.00027778,2]
[424215636,1780669863000,-180.97827453,0.00027778,2]
[424215638,1780669863000,-160.83556466,0.00027778,2]
[424215644,1780669863000,-199.8972422,0.00027778,2]
[424215640,1780669863000,-190.09441511,0.00027778,2]
[424215641,1780669863000,-156.48343925,0.00027778,2]
[424215642,1780669863000,-168.5707522,0.00027778,2]
[424215639,1780669863000,-176.4046074,0.00027778,2]
[424215643,1780669863000,-155.50216629,0.00027778,2]
[424215645,1780669863000,-171.1832741,0.00027778,2]
[424215648,1780669863000,-175.33759784,0.00027778,2]
[424215650,1780669863000,-201.75746709,0.00027778,2]
[424215649,1780669863000,-152.99107165,0.00027778,2]
[424215595,1780669863000,-1445.79743,0.00027397,2]
[424215647,1780669863000,-180.01253117,0.00027778,2]
[424215618,1780669863000,-335.48999999,0.00027646,2]
[424215651,1780669863000,-186.40142842,0.00027778,2]
[424215619,1780669863000,-559.0,0.00027671,2]
[424215621,1780669863000,-3553.0,0.00027702,2]
[424215585,1780669863000,-1445.79743,0.00027397,2]
[424215593,1780669863000,-1445.79743,0.00027397,2]
[424215594,1780669863000,-1445.79743,0.00027397,2]
[424215592,1780669863000,-1445.79743,0.00027397,2]
[424215591,1780669863000,-1445.79743,0.00027397,2]
[424215598,1780669863000,-1445.79743,0.00027397,2]
[424215597,1780669863000,-1445.79743,0.00027397,2]
[424215609,1780669863000,-1093.69,0.000274,7]
[424215601,1780669863000,-1445.79743,0.00027397,2]
[424215605,1780669863000,-42841.82,0.00027397,10]
[424215599,1780669863000,-1445.79743,0.00027397,2]
[424215607,1780669863000,-191.02827794,0.00027397,2]
[424215606,1780669863000,-179.08520211,0.00027397,30]
[424215589,1780669863000,-1445.79743,0.00027397,2]
[424215602,1780669863000,-1445.79743,0.00027397,2]
[424215622,1780669863000,-260.4103811,0.00027714,2]
[424215615,1780669863000,-500.0,0.000275,7]
[424215616,1780669863000,-3949.0,0.000275,7]
[424215620,1780669863000,-2330.7,0.00027676,7]
[424215608,1780669863000,-300.0,0.00027398,14]
[424215611,1780669863000,-2065.3,0.000274,7]
[424215617,1780669863000,-1110.02762682,0.00027606,3]
[424215612,1780669863000,-755.69,0.000274,14]
[424215613,1780669863000,-200.0,0.00027499,2]
[424215610,1780669863000,-999.29727841,0.000274,2]
[424215604,1780669863000,-51410.18,0.00027397,10]
[424215603,1780669863000,-1445.79743,0.00027397,2]
[424215600,1780669863000,-1445.79743,0.00027397,2]
[424215614,1780669863000,-204.76212221,0.000275,2]
[424215690,1780669864000,-4793.4,0.00028267,2]
[424215694,1780669864000,-671.45,0.00028301,2]
[424215697,1780669864000,-2266.07,0.00028377,30]
[424215691,1780669864000,-200.0,0.00028268,2]
[424215695,1780669864000,-681.56,0.00028346,7]
[424215682,1780669864000,-150.0,0.00028141,2]
[424215688,1780669864000,-2065.3,0.000282,7]
[424215687,1780669864000,-475.27,0.0002818,2]
[424215683,1780669864000,-150.0,0.00028141,2]
[424215684,1780669864000,-150.0,0.00028141,2]
[424215678,1780669864000,-500.0,0.00028012,14]
[424215689,1780669864000,-559.0,0.00028205,3]
[424215692,1780669864000,-681.56,0.00028297,2]
[424215710,1780669864000,-681.56,0.00028494,7]
[424215698,1780669864000,-1449.08,0.00028377,30]
[424215699,1780669864000,-2342.93,0.0002838,30]
[424215696,1780669864000,-671.45,0.0002835,7]
[424215701,1780669864000,-335.49,0.00028394,2]
[424215709,1780669864000,-168.28,0.00028493,2]